lending/lending_fUSD_20250802
["ID","MTS","AMOUNT","RATE_DAILY","PERIOD"]
[376737299,1754093445007,-300.0,0.00024657,3]
[376737301,1754093445017,-703.24,0.00024657,3]
[376737302,1754093445027,-667.19,0.00024657,3]
[376737303,1754093445038,-400.0,0.00024657,3]
[376737304,1754093445048,-400.0,0.00024657,3]
[376737305,1754093445059,-400.0,0.00024657,3]
[376737306,1754093445073,-837.07,0.00024657,3]
[376737307,1754093445082,-400.0,0.00024657,3]
[376737308,1754093445092,-400.0,0.00024657,3]
[376737309,1754093445102,-931.71,0.00024657,3]
[376737310,1754093445113,-400.0,0.00024657,3]
[376737311,1754093445123,-400.0,0.00024657,3]
[376737312,1754093445132,-400.0,0.00024657,3]
[376737314,1754093445144,-400.0,0.00024657,3]
[376737316,1754093445154,-400.0,0.00024657,3]
[376737318,1754093445163,-400.0,0.00024657,3]
[376737320,1754093445174,-400.0,0.00024657,3]
[376737322,1754093445184,-400.0,0.00024657,3]
[376737324,1754093445194,-592.34,0.00024657,3]
[376737326,1754093445205,-543.55,0.00024657,3]
[376737328,1754093445214,-1501.58,0.00024657,3]
[376737330,1754093445225,-400.0,0.00024657,3]
[376737332,1754093445235,-400.0,0.00024657,3]
[376737334,1754093445246,-400.0,0.00024657,3]
[376737336,1754093445255,-400.0,0.00024657,3]
[376737339,1754093445265,-181.69506249,0.00024657,3]
[376737341,1754093445275,-400.0,0.00024657,3]
[376737343,1754093445285,-400.0,0.00024657,3]
[376737345,1754093445295,-400.0,0.00024657,3]
[376737347,1754093445306,-400.0,0.00024657,3]
[376737349,1754093445316,-400.0,0.00024657,3]
[376737351,1754093445326,-896.96,0.00024657,3]
[376737353,1754093445336,-400.0,0.00024657,3]
[376737355,1754093445346,-400.0,0.00024657,3]
[376737357,1754093445356,-400.0,0.00024657,3]
[376737359,1754093445367,-400.0,0.00024657,3]
[376737361,1754093445376,-400.0,0.00024657,3]
[376737363,1754093445386,-405.44233331,0.00024657,3]
[376737365,1754093445396,-400.0,0.00024657,3]
[376737368,1754093445406,-402.28712884,0.00024657,3]
[376737370,1754093445416,-400.0,0.00024657,3]
[376737372,1754093445426,-790.39,0.00024657,3]
[376737374,1754093445436,-400.0,0.00024657,3]
[376737376,1754093445446,-400.0,0.00024657,3]
[376737378,1754093445456,-465.3147519,0.00024657,3]
[376737380,1754093445466,-400.0,0.00024657,3]
[376737382,1754093445476,-471.72,0.00024657,3]
[376737384,1754093445486,-400.0,0.00024657,3]
[376737386,1754093445496,-460.0,0.00024657,3]
[376737388,1754093445505,-245.75726662,0.00024657,3]
[376737390,1754093445515,-400.0,0.00024657,3]
[376737392,1754093445525,-400.0,0.00024657,3]
[376737394,1754093445535,-400.0,0.00024657,3]
[376737396,1754093445545,-400.0,0.00024657,3]
[376737399,1754093445555,-400.0,0.00024657,3]
[376737401,1754093445565,-400.0,0.00024657,3]
[376737403,1754093445575,-400.0,0.00024657,3]
[376737405,1754093445585,-400.0,0.00024657,3]
[376737407,1754093445595,-400.0,0.00024657,3]
[376737409,1754093445605,-400.0,0.00024657,3]
[376737411,1754093445615,-405.7,0.00024657,3]
[376737413,1754093445625,-400.0,0.00024657,3]
[376737415,1754093445635,-691.65,0.00024657,3]
[376737417,1754093445645,-400.0,0.00024657,3]
[376737419,1754093445655,-400.0,0.00024657,3]
[376737421,1754093445665,-516.90762556,0.00024657,3]
[376737423,1754093445675,-1346.66,0.00024657,3]
[376737425,1754093445685,-400.0,0.00024657,3]
[376737427,1754093445695,-869.91,0.00024657,3]
[376737429,1754093445705,-400.0,0.00024657,3]
[376737431,1754093445715,-400.0,0.00024657,3]
[376737433,1754093445725,-400.0,0.00024657,3]
[376737435,1754093445735,-400.0,0.00024657,3]
[376737438,1754093445744,-197.70346669,0.00024657,3]
[376737440,1754093445754,-400.0,0.00024657,3]
[376737442,1754093445764,-400.0,0.00024657,3]
[376737444,1754093445774,-400.0,0.00024657,3]
[376737446,1754093445783,-400.0,0.00024657,3]
[376737448,1754093445793,-400.0,0.00024657,3]
[376737450,1754093445804,-400.0,0.00024657,3]
[376737452,1754093445814,-441.64,0.00024657,3]
[376737454,1754093445824,-513.09,0.00024657,3]
[376737456,1754093445835,-2824.04,0.00024657,3]
[376737458,1754093445844,-400.0,0.00024657,3]
[376737460,1754093445854,-400.0,0.00024657,3]
[376737462,1754093445864,-495.308107,0.00024657,3]
[376737464,1754093445873,-400.0,0.00024657,3]
[376737466,1754093445883,-400.0,0.00024657,3]
[376737468,1754093445892,-937.2,0.00024657,3]
[376737470,1754093445902,-400.0,0.00024657,3]
[376737473,1754093445912,-400.0,0.00024657,3]
[376737475,1754093445921,-954.09,0.00024657,3]
[376737477,1754093445931,-569.34,0.00024657,3]
[376737479,1754093445941,-528.77,0.00024657,3]
[376737481,1754093445951,-400.0,0.00024657,3]
[376737484,1754093445961,-361.98443193,0.00024657,3]
[376737486,1754093445983,-400.0,0.00024657,3]
[376737488,1754093446002,-400.0,0.00024657,3]
[376737490,1754093446012,-400.0,0.00024657,3]
[376737492,1754093446021,-400.0,0.00024657,3]
[376737494,1754093446031,-400.0,0.00024657,3]
[376737496,1754093446041,-400.0,0.00024657,3]
[376737498,1754093446051,-455.19,0.00024657,3]
[376737500,1754093446061,-400.0,0.00024657,3]
[376737502,1754093446076,-697.19,0.00024657,3]
[376737504,1754093446085,-400.0,0.00024657,3]
[376737507,1754093446095,-400.0,0.00024657,3]
[376737509,1754093446107,-400.0,0.00024657,3]
[376737511,1754093446117,-400.0,0.00024657,3]
[376737513,1754093446126,-400.0,0.00024657,3]
[376737515,1754093446136,-400.0,0.00024657,3]
[376737517,1754093446147,-400.0,0.00024657,3]
[376737519,1754093446157,-1226.7,0.00024657,2]
[376737521,1754093446167,-868.36,0.00024657,3]
[376737523,1754093446177,-400.0,0.00024657,3]
[376737525,1754093446187,-400.0,0.00024657,3]
[376737527,1754093446197,-400.0,0.00024657,3]
[376737529,1754093446207,-400.0,0.00024657,3]
[376737531,1754093446217,-400.0,0.00024657,3]
[376737533,1754093446227,-446.24,0.00024657,3]
[376737535,1754093446236,-532.62,0.00024657,3]
[376737536,1754093446246,-694.22,0.00024657,3]
[376737538,1754093446256,-492.71,0.00024657,3]
[376737540,1754093446265,-400.0,0.00024657,3]
[376737542,1754093446276,-400.0,0.00024657,3]
[376737543,1754093446287,-400.0,0.00024657,3]
[376737545,1754093446297,-400.0,0.00024657,3]
[376737547,1754093446307,-401.68952077,0.00024657,3]
[376737549,1754093446317,-500.0,0.00024657,3]
[376737551,1754093446328,-400.0,0.00024657,3]
[376737553,1754093446338,-400.0,0.00024657,3]
[376737554,1754093446348,-400.0,0.00024657,3]
[376737556,1754093446358,-400.0,0.00024657,3]
[376737558,1754093446368,-577.68,0.00024657,3]
[376737560,1754093446379,-400.0,0.00024657,3]
[376737562,1754093446389,-400.0,0.00024657,3]
[376737563,1754093446399,-400.0,0.00024657,3]
[376737565,1754093446409,-400.0,0.00024657,3]
[376737567,1754093446419,-713.67,0.00024657,3]
[376737591,1754093446694,-488.86,0.00024657,3]
[376737595,1754093446719,-400.0,0.00024657,3]
[376737597,1754093446729,-400.0,0.00024657,3]
[376737598,1754093446739,-446.46,0.00024657,3]
[376737600,1754093446748,-400.0,0.00024657,3]
[376737602,1754093446758,-475.54,0.00024657,3]
[376737604,1754093446768,-68.79468343,0.00024657,3]
[376737690,1754093447853,-331.20531657,0.00024657,3]
[376737692,1754093447863,-256.79468343,0.00024657,3]
[376737769,1754093448595,-588.0,0.00024557,2]
[376738963,1754093680139,575.636344,0.000273,120]
[376738964,1754093703631,2000.0,0.00034167,120]
[376738965,1754093713611,2000.0,0.00034167,90]
[376739164,1754094087920,500.00000069,0.0002739,120]
[376739165,1754094111335,1566.99,0.00034165,30]
[376739166,1754094139767,1465.03171125,0.00034165,30]
[376739194,1754094352630,202.21,0.00013699,2]
[376739198,1754094430528,945.49,0.00022976,120]
[376739199,1754094470809,481.41431832,0.00012893,2]
[376739211,1754094632341,-666.22,0.00017557,2]
[376739213,1754094632351,-5800.0,0.00018695,2]
[376739215,1754094632360,-666.22,0.00019288,2]
[376739217,1754094632371,-202.21,0.00020187,2]
[376739218,1754094632385,-270.0,0.00021,2]
[376739219,1754094632395,-666.22,0.00021018,2]
[376739220,1754094632405,-463.02,0.00021244,2]
[376739221,1754094632415,-514.0,0.00021648,2]
[376739222,1754094632424,-529.0,0.0002218,2]
[376739223,1754094632434,-666.22,0.00022748,2]
[376739224,1754094632443,-150.0,0.00022933,2]
[376739225,1754094632455,-250.0,0.00022951,2]
[376739226,1754094632465,-281.14810451,0.00023,3]
[376739227,1754094632489,-848.6229296,0.00023,3]
[376739228,1754094632506,-1655.40896589,0.00023,3]
[376739229,1754094632515,-1200.0,0.00023,2]
[376739230,1754094632525,-300.0,0.00023,2]
[376739231,1754094632534,-300.0,0.00023,2]
[376739232,1754094632544,-5000.0,0.00023001,2]
[376739233,1754094632558,-1000.0,0.00023034,2]
[376739234,1754094632568,-8627.33,0.00023037,2]
[376739235,1754094632577,-668.0,0.00023121,2]
[376739236,1754094632587,-9364.24,0.00023123,7]
[376739237,1754094632598,-164.29,0.0002318,2]
[376739238,1754094632608,-154.96,0.00023353,2]
[376739239,1754094632621,-518.0,0.0002337,2]
[376739240,1754094632631,-175.0,0.00023388,7]
[376739241,1754094632640,-23900.0,0.00023417,2]
[376739242,1754094632650,-154.96,0.00023469,2]
[376739243,1754094632659,-688.14,0.00023495,2]
[376739244,1754094632669,-178.06,0.00023533,2]
[376739245,1754094632678,-514.0,0.00023566,4]
[376739246,1754094632688,-209.46,0.00023583,2]
[376739247,1754094632697,-154.96,0.00023586,2]
[376739248,1754094632707,-2987.24422206,0.00023917,2]
[376739249,1754094632716,-1713.75,0.00024,5]
[376739250,1754094632725,-151.03174665,0.00024056,2]
[376739251,1754094632735,-151.03174665,0.00024139,2]
[376739253,1754094632744,-151.03174665,0.00024221,2]
[376739255,1754094632753,-151.03174665,0.00024304,2]
[376739257,1754094632762,-150.47,0.00024355,2]
[376739259,1754094632771,-817.87,0.00024373,2]
[376739261,1754094632780,-933.18,0.00024373,2]
[376739263,1754094632790,-151.03174665,0.00024387,2]
[376739265,1754094632799,-1728.71269,0.0002441,2]
[376739267,1754094632811,-151.03174665,0.00024469,2]
[376739269,1754094632820,-666.22,0.00024479,2]
[376739271,1754094632829,-20000.0,0.000245,3]
[376739273,1754094632838,-841.09740556,0.00024506,2]
[376739275,1754094632847,-507.0,0.0002455,2]
[376739277,1754094632856,-151.03174665,0.00024552,2]
[376739279,1754094632866,-152.52262819,0.00024556,2]
[376739281,1754094632875,-258.48268333,0.00024556,2]
[376739283,1754094632884,-5000.0,0.00024557,2]
[376739285,1754094632894,-157.61300193,0.00024557,2]
[376739287,1754094632903,-1079.08231527,0.00024557,2]
[376739289,1754094632912,-2299.70579133,0.00024557,2]
[376739291,1754094632921,-152.52262813,0.00024602,2]
[376739293,1754094632930,-151.03174665,0.00024635,2]
[376739295,1754094632939,-204.70153627,0.00024647,2]
[376739297,1754094632948,-152.52262813,0.00024648,2]
[376739299,1754094632957,-1079.08231522,0.00024648,2]
[376739301,1754094632966,-2299.70579128,0.00024648,2]
[376739303,1754094632975,-2014.675,0.00024654,7]
[376739305,1754094632984,-180.946,0.00024654,7]
[376739307,1754094632993,-841.09740556,0.00024654,7]
[376739309,1754094633002,-313.01212206,0.00024656,2]
[376739311,1754094633011,-281.09388844,0.00024656,2]
[376739313,1754094633020,-1391.35262169,0.00024656,10]
[376739314,1754094633030,-487.29018509,0.00024656,2]
[376739315,1754094633039,-331.95958665,0.00024656,2]
[376739316,1754094633048,-233.27675611,0.00024656,2]
[376739317,1754094633059,-2824.45159555,0.00024656,2]
[376739318,1754094633072,-5210.91493605,0.00024656,2]
[376739319,1754094633081,-63790.36813638,0.00024656,2]
[376739320,1754094633120,-12001.04869761,0.00024656,2]
[376739321,1754094633131,-569.69199198,0.00024656,2]
[376739322,1754094633151,-427.92221897,0.00024656,2]
[376739490,1754094640299,-444.5550025,0.0002268,3]
[376739503,1754094640539,-500.00614723,0.0002268,3]
[376739507,1754094640573,-823.51728227,0.0002268,3]
[376739514,1754094640624,-119.921568,0.0002268,3]
[376739516,1754094640634,-468.078432,0.0002318,3]
[376739518,1754094640645,-289.61920102,0.0002318,3]
[376739866,1754094646373,-5800.0,0.00018686,2]
[376739867,1754094646384,-510.30236698,0.0002318,3]
[376739868,1754094646394,-1159.76563202,0.00024656,2]
[376739869,1754094646430,-1861.24303103,0.00024656,2]
[376739870,1754094646443,-2447.13085106,0.00024656,2]
[376739871,1754094646488,-1159.14,0.00024656,2]
[376739872,1754094646500,-5066.44595268,0.00024656,2]
[376739873,1754094646600,-965.42,0.00024656,2]
[376739916,1754094858637,248.28,0.00026668,120]
[376739917,1754094884020,16940.0,0.00027397,120]
[376739918,1754095025882,346.92554585,0.00034166,30]
[376739919,1754095029200,151.0,0.00034166,30]
[376739920,1754095029375,151.0,0.00034166,30]
[376739921,1754095029860,151.0,0.00034166,30]
[376739922,1754095030876,600.0,0.00034166,30]
[376739923,1754095030941,151.0,0.00034166,30]
[376739924,1754095031233,151.0,0.00034166,30]
[376739925,1754095031604,151.0,0.00034166,30]
[376739926,1754095032255,151.0,0.00034166,30]
[376739927,1754095032881,151.0,0.00034166,30]
[376739928,1754095033642,151.0,0.00034166,30]
[376739929,1754095034643,151.0,0.00034166,30]
[376739930,1754095035809,151.0,0.00034166,30]
[376739931,1754095036451,151.0,0.00034166,30]
[376739932,1754095037117,151.0,0.00034166,30]
[376739933,1754095037822,151.0,0.00034166,30]
[376739934,1754095037853,231.28369723,0.00034166,30]
[376739935,1754095038510,151.0,0.00034166,30]
[376739936,1754095039770,151.0,0.00034166,30]
[376739938,1754095046594,2000.0,0.00034166,30]
[376739939,1754095098066,800.0,0.00034167,30]
[376739956,1754095782084,277.0,0.00027397,120]
[376739962,1754095831668,-232.0,0.00017539,2]
[376739963,1754095831678,-5398.56959281,0.0001754,2]
[376739964,1754095831690,-24726.89693891,0.0001754,2]
[376739965,1754095831700,-2000.0,0.0001754,4]
[376739966,1754095831710,-669.62,0.0001754,2]
[376739967,1754095831720,-2000.0,0.00018216,4]
[376739968,1754095831731,-534.56843716,0.00018658,2]
[376739969,1754095831742,-5800.0,0.00018669,2]
[376739970,1754095831752,-5800.0,0.00018678,2]
[376739971,1754095831761,-669.62,0.0001927,2]
[376739972,1754095831771,-2000.0,0.00019293,4]
[376739973,1754095831781,-237.0,0.0002,2]
[376739974,1754095831791,-200.0,0.0002,2]
[376739975,1754095831804,-211.0,0.00021,2]
[376739976,1754095831815,-669.62,0.00021,2]
[376739977,1754095831825,-232.0,0.0002118,2]
[376739978,1754095831835,-370.41,0.00021206,2]
[376739979,1754095831845,-455.0,0.0002237,2]
[376739980,1754095831854,-502.0,0.00022484,2]
[376739981,1754095831865,-669.62,0.00022731,2]
[376739982,1754095831876,-210.35,0.0002295,2]
[376739983,1754095831886,-150.0,0.00022984,2]
[376739984,1754095831896,-1000.0,0.00022997,2]
[376739985,1754095831906,-4900.4168067,0.00023,2]
[376739986,1754095831917,-250.0,0.00023006,2]
[376739987,1754095831928,-5000.0,0.00023177,2]
[376739988,1754095831937,-165.76,0.00023227,2]
[376739989,1754095831947,-211.30576106,0.00023421,2]
[376739990,1754095831956,-456.97551316,0.00023421,2]
[376739991,1754095831966,-160.0,0.00023421,2]
[376739992,1754095831976,-327.98264523,0.00023421,2]
[376739993,1754095831995,-513.11476033,0.00023421,2]
[376739995,1754095832005,-446.0,0.0002355,2]
[376739996,1754095832014,-4681.08,0.00023603,2]
[376739997,1754095832024,-175.0,0.00023627,7]
[376739998,1754095832033,-151.0,0.00023634,2]
[376739999,1754095832042,-151.0,0.00023634,2]
[376740002,1754095832056,-151.0,0.00023634,2]
[376740004,1754095832065,-151.0,0.00023634,2]
[376740006,1754095832075,-151.0,0.00023634,2]
[376740008,1754095832084,-151.0,0.00023634,2]
[376740010,1754095832094,-151.0,0.00023634,2]
[376740012,1754095832103,-151.0,0.00023634,2]
[376740013,1754095832113,-151.0,0.00023634,2]
[376740016,1754095832123,-151.0,0.00023634,2]
[376740018,1754095832133,-151.0,0.00023634,2]
[376740020,1754095832142,-151.0,0.00023634,2]
[376740022,1754095832151,-151.0,0.00023634,2]
[376740024,1754095832161,-151.0,0.00023634,2]
[376740026,1754095832171,-151.0,0.00023634,2]
[376740027,1754095832181,-151.0,0.00023634,2]
[376740028,1754095832190,-151.0,0.00023634,2]
[376740029,1754095832199,-151.0,0.00023634,2]
[376740030,1754095832209,-151.0,0.00023634,2]
[376740031,1754095832218,-151.0,0.00023634,2]
[376740032,1754095832227,-164.29,0.00023635,2]
[376740033,1754095832236,-23900.0,0.00023648,2]
[376740034,1754095832246,-248.28,0.00023705,2]
[376740035,1754095832255,-209.46,0.00023734,2]
[376740036,1754095832264,-466.59,0.00023841,2]
[376740037,1754095832273,-1991.49614804,0.00023917,2]
[376740038,1754095832283,-151.87081191,0.00024056,2]
[376740039,1754095832292,-151.87081191,0.00024139,2]
[376740040,1754095832305,-151.87081191,0.00024221,2]
[376740041,1754095832314,-151.87081191,0.00024304,2]
[376740042,1754095832323,-502.0,0.00024359,4]
[376740043,1754095832332,-151.87081191,0.00024387,2]
[376740044,1754095832342,-1480.52577121,0.000244,2]
[376740045,1754095832352,-466.59,0.000244,2]
[376740046,1754095832361,-345.42,0.00024419,2]
[376740047,1754095832371,-200.0,0.00024459,2]
[376740048,1754095832381,-200.0,0.0002446,2]
[376740049,1754095832390,-200.0,0.0002446,2]
[376740050,1754095832399,-669.62,0.00024461,2]
[376740051,1754095832408,-151.87081191,0.00024469,2]
[376740052,1754095832417,-4549.84962971,0.000245,2]
[376740053,1754095832436,-510.0,0.000245,2]
[376740061,1754095837551,-588.0,0.0002287,3]
[376740062,1754095837563,-4049.53059671,0.000245,2]
[376740063,1754095838663,-1803.63977358,0.000245,2]
[376740064,1754095838673,-1000.0,0.00024534,2]
[376740065,1754095838682,-328.85091604,0.00024534,2]
[376740163,1754095839875,-762.21098396,0.00024534,2]
[376740165,1754095839885,-313.82561886,0.00024534,2]
[376740171,1754095839929,-686.17438114,0.00024534,2]
[376740173,1754095839938,-1000.0,0.00024534,2]
[376740175,1754095839948,-1000.0,0.00024534,2]
[376740177,1754095839957,-1000.0,0.00024534,2]
[376740179,1754095839966,-1000.0,0.00024534,2]
[376740181,1754095839976,-1000.0,0.00024534,2]
[376740183,1754095839986,-1000.0,0.00024534,2]
[376740185,1754095839996,-1000.0,0.00024534,2]
[376740187,1754095840005,-1000.0,0.00024534,2]
[376740189,1754095840014,-1000.0,0.00024534,2]
[376740191,1754095840024,-1000.0,0.00024534,2]
[376740193,1754095840033,-1000.0,0.00024534,2]
[376740195,1754095840043,-1000.0,0.00024534,2]
[376740197,1754095840052,-1000.0,0.00024534,2]
[376740199,1754095840062,-1000.0,0.00024534,2]
[376740200,1754095840072,-1000.0,0.00024534,2]
[376740202,1754095840081,-1000.0,0.00024534,2]
[376740204,1754095840091,-1000.0,0.00024534,2]
[376740206,1754095840100,-1106.7799,0.00024534,2]
[376740208,1754095840109,-151.87081191,0.00024552,2]
[376740210,1754095840118,-1000.0,0.00024553,2]
[376740212,1754095840128,-236.96112965,0.00024556,2]
[376740214,1754095840138,-154.12456705,0.00024556,2]
[376740216,1754095840147,-5000.0,0.00024557,2]
[376740218,1754095840157,-1592.0351,0.00024557,3]
[376740220,1754095840166,-157.61300193,0.00024557,2]
[376740223,1754095840176,-191.4537744,0.00024557,2]
[376740225,1754095840186,-2134.58686402,0.00024557,2]
[376740227,1754095840195,-728.89579817,0.00024557,2]
[376740229,1754095840205,-154.12456703,0.00024585,2]
[376740231,1754095840214,-154.12456703,0.00024615,2]
[376740232,1754095840223,-2134.58686401,0.00024631,2]
[376740234,1754095840233,-2004.899,0.00024635,7]
[376740236,1754095840242,-186.057,0.00024635,7]
[376740238,1754095840252,-151.87081191,0.00024635,2]
[376740240,1754095840261,-150.0,0.00024642,2]
[376740242,1754095840270,-150.0,0.00024642,2]
[376740244,1754095840280,-150.0,0.00024642,2]
[376740247,1754095840291,-150.0,0.00024642,2]
[376740249,1754095840301,-150.0,0.00024642,2]
[376740251,1754095840310,-55.7039395,0.00024642,2]
[376740326,1754095841197,-94.2960605,0.00024642,2]
[376740328,1754095841207,-150.0,0.00024642,2]
[376740330,1754095841217,-150.0,0.00024642,2]
[376740332,1754095841226,-150.0,0.00024642,2]
[376740334,1754095841235,-150.0,0.00024642,2]
[376740336,1754095841244,-500.0,0.00024642,2]
[376740338,1754095841254,-154.12456703,0.00024644,2]
[376740340,1754095841263,-28.18413169,0.00024646,2]
[376740342,1754095841274,-207.44586831,0.00024646,2]
[376740344,1754095841285,-204.70153627,0.00024647,2]
[376740346,1754095841294,-80.35619575,0.00024655,2]
[376740349,1754095841305,-419.64380425,0.00024655,2]
[376740351,1754095841316,-500.0,0.00024655,2]
[376740353,1754095841325,-245.51220625,0.00024655,2]
[376740355,1754095841336,-254.48779375,0.00024655,2]
[376740357,1754095841345,-150.0,0.00024655,2]
[376740359,1754095841354,-150.0,0.00024655,2]
[376740361,1754095841364,-500.0,0.00024655,2]
[376740363,1754095841374,-500.0,0.00024655,2]
[376740365,1754095841383,-500.0,0.00024655,2]
[376740367,1754095841392,-150.0,0.00024655,2]
[376740369,1754095841402,-500.0,0.00024655,2]
[376740371,1754095841411,-500.0,0.00024655,2]
[376740373,1754095841420,-500.0,0.00024655,2]
[376740375,1754095841429,-150.0,0.00024655,2]
[376740377,1754095841439,-150.0,0.00024655,2]
[376740379,1754095841453,-150.0,0.00024655,2]
[376740381,1754095841462,-500.0,0.00024655,2]
[376740383,1754095841471,-675.0,0.00024655,2]
[376740385,1754095841481,-500.0,0.00024655,2]
[376740387,1754095841490,-500.0,0.00024655,2]
[376740389,1754095841499,-150.0,0.00024655,2]
[376740391,1754095841508,-150.73441119,0.00024655,2]
[376740393,1754095841518,-500.0,0.00024655,2]
[376740395,1754095841527,-150.0,0.00024655,2]
[376740398,1754095841536,-150.0,0.00024655,2]
[376740400,1754095841545,-500.0,0.00024656,2]
[376740402,1754095841555,-492.06069556,0.00024656,2]
[376740404,1754095841565,-500.0,0.00024656,2]
[376740406,1754095841575,-196981.1500147,0.00024656,2]
[376740408,1754095841584,-4032.3956252,0.00024656,2]
[376740410,1754095841594,-991.6713,0.00024656,2]
[376740412,1754095841604,-3739.1681445,0.00024656,2]
[376740414,1754095841613,-1630.9127742,0.00024656,2]
[376740416,1754095841622,-683.0,0.00024657,2]
[376740418,1754095841631,-459.04560659,0.00024657,2]
[376740420,1754095841640,-118696.06410921,0.00024657,2]
[376740422,1754095841649,-429.90508207,0.00024657,2]
[376740424,1754095841658,-163.366191,0.00024657,3]
[376740426,1754095841667,-157.971042,0.00024657,3]
[376740428,1754095841677,-159.168951,0.00024657,3]
[376740430,1754095841686,-154.812984,0.00024657,3]
[376740432,1754095841695,-151.0,0.00024657,7]
[376740434,1754095841705,-151.0,0.00024657,7]
[376740436,1754095841714,-151.0,0.00024657,7]
[376740438,1754095841723,-151.0,0.00024657,7]
[376740440,1754095841734,-948.53015,0.00024657,7]
[376740442,1754095841746,-948.53015,0.00024657,7]
[376740444,1754095841756,-948.53015,0.00024657,7]
[376740446,1754095841765,-948.53015,0.00024657,7]
[376740448,1754095841774,-948.53015,0.00024657,7]
[376740450,1754095841784,-948.53015,0.00024657,7]
[376740452,1754095841794,-948.53015,0.00024657,7]
[376740454,1754095841803,-948.53015,0.00024657,7]
[376740456,1754095841814,-948.53015,0.00024657,7]
[376740458,1754095841825,-948.53015,0.00024657,7]
[376740460,1754095841834,-948.53015,0.00024657,7]
[376740462,1754095841844,-948.53015,0.00024657,7]
[376740464,1754095841853,-948.53015,0.00024657,7]
[376740466,1754095841863,-948.53015,0.00024657,7]
[376740468,1754095841872,-151.0,0.00024657,7]
[376740470,1754095841881,-151.0,0.00024657,7]
[376740472,1754095841891,-151.0,0.00024657,7]
[376740474,1754095841901,-151.0,0.00024657,7]
[376740476,1754095841911,-151.0,0.00024657,7]
[376740478,1754095841920,-151.0,0.00024657,7]
[376740480,1754095841929,-151.0,0.00024657,7]
[376740482,1754095841939,-151.0,0.00024657,7]
[376740484,1754095841949,-151.0,0.00024657,7]
[376740486,1754095841958,-151.0,0.00024657,7]
[376740488,1754095841968,-151.0,0.00024657,7]
[376740490,1754095841977,-151.0,0.00024657,7]
[376740492,1754095841986,-151.0,0.00024657,7]
[376740494,1754095841997,-151.0,0.00024657,7]
[376740497,1754095842006,-151.0,0.00024657,7]
[376740499,1754095842016,-151.0,0.00024657,7]
[376740501,1754095842025,-151.0,0.00024657,7]
[376740503,1754095842035,-151.0,0.00024657,7]
[376740505,1754095842045,-151.0,0.00024657,7]
[376740507,1754095842054,-151.0,0.00024657,7]
[376740509,1754095842065,-151.0,0.00024657,7]
[376740511,1754095842074,-151.380201,0.00024657,7]
[376740513,1754095842083,-151.0,0.00024657,7]
[376740515,1754095842092,-151.0,0.00024657,7]
[376740517,1754095842102,-151.0,0.00024657,7]
[376740519,1754095842111,-151.0,0.00024657,7]
[376740521,1754095842120,-151.0,0.00024657,7]
[376740523,1754095842129,-151.0,0.00024657,7]
[376740525,1754095842139,-151.0,0.00024657,7]
[376740527,1754095842148,-151.0,0.00024657,7]
[376740529,1754095842157,-151.0,0.00024657,7]